fUSD/lending_fUSD_20250308
["ID","MTS","AMOUNT","RATE_DAILY","PERIOD"]
[355677046,1741452658547,-579.96,9.863e-05,2]
[355677047,1741452658556,-525.57,9.863e-05,2]
[355677048,1741452658565,-500.0,9.863e-05,2]
[355677049,1741452658574,-709.73,9.863e-05,2]
[355677050,1741452658583,-500.0,9.863e-05,2]
[355677051,1741452658591,-500.0,9.863e-05,2]
[355677052,1741452658600,-591.01,9.863e-05,2]
[355677053,1741452658609,-743.6,9.863e-05,2]
[355677054,1741452658618,-500.0,9.863e-05,2]
[355677055,1741452658627,-500.0,9.863e-05,2]
[355677056,1741452658636,-500.0,9.863e-05,2]
[355677057,1741452658645,-609.03,9.863e-05,2]
[355677058,1741452658655,-612.62,9.863e-05,2]
[355677059,1741452658663,-500.0,9.863e-05,2]
[355677060,1741452658673,-500.0,9.863e-05,2]
[355677061,1741452658683,-500.0,9.863e-05,2]
[355677062,1741452658692,-500.0,9.863e-05,2]
[355677063,1741452658701,-609.32,9.863e-05,2]
[355677064,1741452658711,-851.29,9.863e-05,2]
[355677065,1741452658720,-1077.93,9.863e-05,2]
[355677066,1741452658729,-500.0,9.863e-05,2]
[355677067,1741452658738,-691.53,9.863e-05,2]
[355677068,1741452658748,-708.66,9.863e-05,2]
[355677069,1741452658757,-500.0,9.863e-05,2]
[355677070,1741452658766,-500.0,9.863e-05,2]
[355677071,1741452658776,-500.0,9.863e-05,2]
[355677072,1741452658785,-500.0,9.863e-05,2]
[355677073,1741452658795,-859.23,9.863e-05,2]
[355677074,1741452658805,-500.0,9.863e-05,2]
[355677075,1741452658816,-500.0,9.863e-05,2]
[355677076,1741452658826,-500.0,9.863e-05,2]
[355677077,1741452658835,-500.0,9.863e-05,2]
[355677078,1741452658845,-500.0,9.863e-05,2]
[355677079,1741452658855,-688.72,9.863e-05,2]
[355677080,1741452658865,-844.82,9.863e-05,2]
[355677081,1741452658875,-541.84,9.863e-05,2]
[355677082,1741452658885,-654.03,9.863e-05,2]
[355677083,1741452658895,-500.0,9.863e-05,2]
[355677084,1741452658904,-712.63,9.863e-05,2]
[355677085,1741452658915,-500.0,9.863e-05,2]
[355677086,1741452658925,-500.0,9.863e-05,2]
[355677087,1741452658934,-500.0,9.863e-05,2]
[355677088,1741452658943,-500.0,9.863e-05,2]
[355677089,1741452658952,-265.83486342,9.863e-05,2]
[355677090,1741452658960,-658.85,9.863e-05,2]
[355677091,1741452658970,-500.0,9.863e-05,2]
[355677092,1741452658979,-794.59,9.863e-05,2]
[355677093,1741452658988,-500.0,9.863e-05,2]
[355677094,1741452658997,-548.22,9.863e-05,2]
[355677095,1741452659007,-500.0,9.863e-05,2]
[355677096,1741452659017,-500.0,9.863e-05,2]
[355677097,1741452659034,-612.76804057,9.863e-05,2]
[355677098,1741452659045,-612.25,9.863e-05,2]
[355677099,1741452659054,-857.02,9.863e-05,2]
[355677100,1741452659064,-453.72623136,9.863e-05,2]
[355677101,1741452659077,-675.97,9.863e-05,2]
[355677102,1741452659086,-623.25,9.863e-05,2]
[355677103,1741452659094,-982.52,9.863e-05,2]
[355677104,1741452659101,-500.0,9.863e-05,2]
[355677105,1741452659108,-605.91,9.863e-05,2]
[355677106,1741452659119,-500.0,9.863e-05,2]
[355677107,1741452659128,-500.0,9.863e-05,2]
[355677108,1741452659138,-1592.66,9.863e-05,2]
[355677109,1741452659150,-710.79,9.863e-05,2]
[355677110,1741452659159,-500.0,9.863e-05,2]
[355677111,1741452659168,-500.0,9.863e-05,2]
[355677112,1741452659178,-500.0,9.863e-05,2]
[355677113,1741452659188,-557.14,9.863e-05,2]
[355677114,1741452659197,-500.0,9.863e-05,2]
[355677115,1741452659206,-500.0,9.863e-05,2]
[355677116,1741452659216,-1347.38,9.863e-05,2]
[355677117,1741452659225,-1502.89,9.863e-05,2]
[355677118,1741452659235,-1996.33,9.863e-05,2]
[355677119,1741452659244,-500.0,9.863e-05,2]
[355677120,1741452659253,-1144.05,9.863e-05,2]
[355677121,1741452659262,-537.0760737,9.863e-05,2]
[355677122,1741452659272,-1137.9,9.863e-05,2]
[355677123,1741452659281,-1690.8,9.863e-05,2]
[355677124,1741452659290,-1243.82,9.863e-05,2]
[355677125,1741452659299,-1174.08,9.863e-05,2]
[355677126,1741452659310,-614.72,9.863e-05,2]
[355677127,1741452659320,-500.0,9.863e-05,2]
[355677128,1741452659330,-961.42,9.863e-05,2]
[355677129,1741452659339,-551.38,9.863e-05,2]
[355677130,1741452659348,-1143.51,9.863e-05,2]
[355677131,1741452659357,-2931.8,9.863e-05,2]
[355677132,1741452659366,-1961.87,9.863e-05,2]
[355677133,1741452659376,-2407.62,9.863e-05,2]
[355677134,1741452659385,-1344.43,9.863e-05,2]
[355677135,1741452659394,-532.8,9.863e-05,2]
[355677136,1741452659403,-500.0,9.863e-05,2]
[355677137,1741452659413,-500.0,9.863e-05,2]
[355677138,1741452659422,-500.0,9.863e-05,2]
[355677139,1741452659432,-556.64,9.863e-05,2]
[355677140,1741452659441,-987.54,9.863e-05,2]
[355677141,1741452659451,-4344.27,9.863e-05,2]
[355677142,1741452659460,-954.59,9.863e-05,2]
[355677143,1741452659469,-500.0,9.863e-05,2]
[355677144,1741452659479,-500.0,9.863e-05,2]
[355677145,1741452659488,-1000.0,9.863e-05,2]
[355677146,1741452659497,-500.0,9.863e-05,2]
[355677147,1741452659507,-1350.39,9.863e-05,2]
[355677148,1741452659516,-2515.6,9.863e-05,2]
[355677149,1741452659525,-500.0,9.863e-05,2]
[355677150,1741452659534,-500.0,9.863e-05,2]
[355677151,1741452659543,-3329.08,9.863e-05,2]
[355677152,1741452659552,-618.36,9.863e-05,2]
[355677153,1741452659562,-628.44,9.863e-05,2]
[355677154,1741452659571,-500.0,9.863e-05,2]
[355677155,1741452659580,-500.0,9.863e-05,2]
[355677156,1741452659590,-500.0,9.863e-05,2]
[355677157,1741452659600,-1060.46,9.863e-05,2]
[355677158,1741452659609,-500.0,9.863e-05,2]
[355677159,1741452659619,-819.91,9.863e-05,2]
[355677160,1741452659629,-2576.22,9.863e-05,2]
[355677161,1741452659641,-1583.51,9.863e-05,2]
[355677162,1741452659651,-979.53,9.863e-05,2]
[355677163,1741452659661,-2114.02,9.863e-05,2]
[355677164,1741452659671,-934.64,9.863e-05,2]
[355677165,1741452659682,-500.0,9.863e-05,2]
[355677166,1741452659691,-662.75,9.863e-05,2]
[355677167,1741452659701,-559.44,9.863e-05,2]
[355677168,1741452659710,-1432.89,9.863e-05,2]
[355677169,1741452659720,-1602.85,9.863e-05,2]
[355677170,1741452659731,-1858.7,9.863e-05,2]
[355677171,1741452659740,-529.15,9.863e-05,2]
[355677172,1741452659750,-865.71,9.863e-05,2]
[355677173,1741452659759,-4246.99,9.863e-05,2]
[355677174,1741452659769,-500.0,9.863e-05,2]
[355677175,1741452659778,-1130.2,9.863e-05,2]
[355677176,1741452659787,-500.0,9.863e-05,2]
[355677177,1741452659796,-4901.03,9.863e-05,2]
[355677178,1741452659805,-911.39,9.863e-05,2]
[355677179,1741452659814,-1278.79,9.863e-05,2]
[355677180,1741452659824,-2039.71,9.863e-05,2]
[355677181,1741452659833,-826.26,9.863e-05,2]
[355677182,1741452659843,-500.0,9.863e-05,2]
[355677183,1741452659852,-500.0,9.863e-05,2]
[355677184,1741452659861,-500.0,9.863e-05,2]
[355677185,1741452659871,-1258.53,9.863e-05,2]
[355677186,1741452659881,-906.02,9.863e-05,2]
[355677187,1741452659890,-1220.28,9.863e-05,2]
[355677188,1741452659899,-646.83,9.863e-05,2]
[355677189,1741452659909,-1111.92,9.863e-05,2]
[355677190,1741452659918,-8508.19,9.863e-05,2]
[355677191,1741452659928,-500.0,9.863e-05,2]
[355677192,1741452659938,-1538.13,9.863e-05,2]
[355677193,1741452659947,-1284.68,9.863e-05,2]
[355677194,1741452659956,-1549.41,9.863e-05,2]
[355677195,1741452659966,-2491.1,9.863e-05,2]
[355677196,1741452659975,-500.0,9.863e-05,2]
[355677197,1741452659984,-512.48,9.863e-05,2]
[355677198,1741452659994,-500.0,9.863e-05,2]
[355677199,1741452660004,-1790.81,9.863e-05,2]
[355677200,1741452660014,-2188.52,9.863e-05,2]
[355677201,1741452660024,-871.16,9.863e-05,2]
[355677202,1741452660033,-500.0,9.863e-05,2]
[355677203,1741452660043,-625.66,9.863e-05,2]
[355677204,1741452660054,-4434.79,9.863e-05,2]
[355677205,1741452660064,-1964.83,9.863e-05,2]
[355677206,1741452660076,-1952.32,9.863e-05,2]
[355677207,1741452660085,-716.59,9.863e-05,2]
[355677208,1741452660095,-500.0,9.863e-05,2]
[355677209,1741452660104,-2004.94,9.863e-05,2]
[355677210,1741452660114,-2082.21,9.863e-05,2]
[355677211,1741452660124,-1581.72,9.863e-05,2]
[355677212,1741452660133,-1195.58,9.863e-05,2]
[355677213,1741452660143,-500.0,9.863e-05,2]
[355677214,1741452660153,-4211.53,9.863e-05,2]
[355677215,1741452660164,-533.78,9.863e-05,2]
[355677216,1741452660174,-435.55532145,9.863e-05,2]
[355677217,1741452660184,-913.32,9.863e-05,2]
[355677218,1741452660193,-500.0,9.863e-05,2]
[355677219,1741452660203,-3878.83,9.863e-05,2]
[355677220,1741452660212,-2355.64,9.863e-05,2]
[355677221,1741452660222,-2212.11,9.863e-05,2]
[355677222,1741452660231,-500.0,9.863e-05,2]
[355677223,1741452660241,-2117.57,9.863e-05,2]
[355677224,1741452660251,-18782.74,9.863e-05,2]
[355677225,1741452660261,-500.0,9.863e-05,2]
[355677226,1741452660270,-1673.95,9.863e-05,2]
[355677227,1741452660280,-3792.76,9.863e-05,2]
[355677228,1741452660290,-500.0,9.863e-05,2]
[355677229,1741452660299,-500.0,9.863e-05,2]
[355677230,1741452660309,-510.78,9.863e-05,2]
[355677231,1741452660318,-594.34,9.863e-05,2]
[355677232,1741452660328,-1584.66,9.863e-05,2]
[355677233,1741452660338,-1000.88,9.863e-05,2]
[355677234,1741452660347,-1910.17,9.863e-05,2]
[355677235,1741452660357,-2164.63,9.863e-05,2]
[355677236,1741452660367,-895.76,9.863e-05,2]
[355677237,1741452660376,-4457.98,9.863e-05,2]
[355677238,1741452660386,-500.0,9.863e-05,2]
[355677239,1741452660395,-562.29,9.863e-05,2]
[355677240,1741452660405,-500.0,9.863e-05,2]
[355677241,1741452660414,-500.0,9.863e-05,2]
[355677242,1741452660425,-1388.1,9.863e-05,2]
[355677243,1741452660435,-507.13,9.863e-05,2]
[355677244,1741452660444,-1070.16,9.863e-05,2]
[355677245,1741452660453,-500.0,9.863e-05,2]
[355677246,1741452660463,-1021.66,9.863e-05,2]
[355677247,1741452660472,-1375.91,9.863e-05,2]
[355677248,1741452660481,-500.0,9.863e-05,2]
[355677249,1741452660490,-2592.63,9.863e-05,2]
[355677250,1741452660500,-488.55842511,9.863e-05,2]
[355677251,1741452660510,-3571.5,9.863e-05,2]
[355677252,1741452660522,-667.45,9.863e-05,2]
[355677253,1741452660532,-500.0,9.863e-05,2]
[355677254,1741452660542,-500.0,9.863e-05,2]
[355677255,1741452660551,-500.0,9.863e-05,2]
[355677256,1741452660561,-13981.56,9.863e-05,2]
[355677257,1741452660570,-969.86,9.863e-05,2]
[355677258,1741452660579,-500.0,9.863e-05,2]
[355677259,1741452660588,-993.45,9.863e-05,2]
[355677260,1741452660598,-500.0,9.863e-05,2]
[355677261,1741452660607,-1510.52,9.863e-05,2]
[355677262,1741452660616,-500.0,9.863e-05,2]
[355677263,1741452660625,-3536.56,9.863e-05,2]
[355677264,1741452660635,-500.0,9.863e-05,2]
[355677265,1741452660644,-500.0,9.863e-05,2]
[355677266,1741452660653,-500.0,9.863e-05,2]
[355677267,1741452660663,-790.98,9.863e-05,2]
[355677268,1741452660672,-6696.4,9.863e-05,2]
[355677269,1741452660682,-500.0,9.863e-05,2]
[355677270,1741452660692,-500.0,9.863e-05,2]
[355677271,1741452660701,-500.0,9.863e-05,2]
[355677272,1741452660710,-1710.7,9.863e-05,2]
[355677273,1741452660719,-1445.03,9.863e-05,2]
[355677274,1741452660728,-4700.0,9.9e-05,3]
[355677275,1741452660738,-600.0,9.9e-05,3]
[355677276,1741452660747,-1000.0,9.9e-05,2]
[355677277,1741452660757,-671.6888416,9.931e-05,2]
[355677278,1741452660767,-587.0,9.943e-05,2]
[355677279,1741452660776,-5800.0,9.985e-05,2]
[355677280,1741452660785,-2000.98,9.999e-05,2]
[355677281,1741452660795,-156206.1287455,0.0001,2]
[355677282,1741452660804,-464249.72663889,0.0001,2]
[355677283,1741452661103,-2088.168,0.0001,2]
[355677284,1741452661116,-11150.63382743,0.0001,2]
[355677285,1741452661127,-615.4,0.0001,2]
[355677286,1741452661138,-300.75060262,0.0001,2]
[355677287,1741452661846,-1445.61,8.219e-05,2]
[355677288,1741452661859,-8081.89736905,0.0001,2]
[355677289,1741452661870,-4430.0000001,0.0001,2]
[355677290,1741452663809,-359.41929164,8.493e-05,2]
[355677291,1741452663824,-1086.19070836,8.493e-05,2]
[355677292,1741452663835,-3242.64531958,0.0001,2]
[355677293,1741452663849,-619.99510541,0.0001,2]
[355677294,1741452664335,-640.72187972,8.218e-05,2]
[355677295,1741452664345,-1445.61,8.767e-05,2]
[355677296,1741452664355,-152.467,9.024e-05,2]
[355677297,1741452664365,-1445.61,9.041e-05,2]
[355677298,1741452664374,-1445.61,9.315e-05,2]
[355677299,1741452664384,-267.64156925,9.531e-05,2]
[355677300,1741452664395,-1445.61,9.589e-05,2]
[355677301,1741452664404,-696.90058363,9.863e-05,2]
[355677302,1741452664422,-748.70941637,9.863e-05,2]
[355677303,1741452664432,-3151.2905747,0.0001,2]
[355677304,1741452664487,-253.84999996,0.0001,2]
[355677327,1741452857968,-300.0,8.118e-05,2]
[355677328,1741452953763,-155.0,8.118e-05,3]
[355677329,1741453130231,-225.0,8.118e-05,2]
[355677331,1741453237478,197.11,7.873e-05,2]
[355677334,1741453329402,155.0,7.835e-05,2]
[355677335,1741453329630,155.0,7.862e-05,2]
[355677336,1741453329832,155.0,7.89e-05,2]
[355677337,1741453330057,155.0,7.917e-05,2]
[355677338,1741453330332,155.0,7.945e-05,2]
[355677339,1741453330529,155.0,7.973e-05,2]
[355677340,1741453330744,155.0,8e-05,2]
[355677341,1741453330953,155.0,8.028e-05,2]
[355677342,1741453331232,155.0,8.056e-05,2]
[355677343,1741453331449,155.0,8.083e-05,2]
[355677344,1741453431072,8252.89,7.566e-05,2]
[355677345,1741453431092,10000.0,7.566e-05,2]
[355677346,1741453431117,5216.25,7.566e-05,2]
[355677347,1741453502264,2000.0,7.671e-05,2]
[355677407,1741453831654,-155.0,8.111e-05,2]
[355677408,1741453831663,-500.0,8.118e-05,2]
[355677409,1741453831673,-68.53013871,8.118e-05,2]
[355677410,1741453831685,-407.88592868,8.118e-05,2]
[355677411,1741453831695,-150.0,8.118e-05,2]
[355677412,1741453831704,-44.55210415,8.119e-05,2]
[355677413,1741453831716,-344.9215,8.119e-05,2]
[355677414,1741453831728,-293.39163012,8.119e-05,2]
[355677415,1741453831782,-326.0,8.119e-05,2]
[355677416,1741453831817,-874.06888894,8.119e-05,2]
[355677417,1741453831828,-633.91710109,8.119e-05,2]
[355677418,1741453831874,-410.2580757,8.119e-05,2]
[355677419,1741453831883,-3766.3606,8.119e-05,2]
[355677420,1741453831893,-155.0,8.139e-05,2]
[355677421,1741453831903,-155.0,8.166e-05,2]
[355677422,1741453831913,-155.0,8.194e-05,2]
[355677423,1741453831924,-6939.69705348,8.209e-05,2]
[355677424,1741453831933,-150.0,8.218e-05,2]
[355677425,1741453831943,-500.0,8.219e-05,2]
[355677426,1741453831952,-500.0,8.219e-05,2]
[355677427,1741453831962,-500.0,8.219e-05,2]
[355677428,1741453831972,-500.0,8.219e-05,2]
[355677429,1741453831982,-500.0,8.219e-05,2]
[355677430,1741453831991,-566.80155419,8.219e-05,2]
[355677431,1741453832001,-500.0,8.219e-05,2]
[355677432,1741453832012,-500.0,8.219e-05,2]
[355677433,1741453832023,-500.0,8.219e-05,2]
[355677434,1741453832033,-500.0,8.219e-05,2]
[355677435,1741453832042,-500.0,8.219e-05,2]
[355677436,1741453832051,-500.0,8.219e-05,2]
[355677437,1741453832061,-500.0,8.219e-05,2]
[355677438,1741453832070,-500.0,8.219e-05,2]
[355677439,1741453832080,-500.0,8.219e-05,2]
[355677440,1741453832091,-500.0,8.219e-05,2]
[355677441,1741453832102,-500.0,8.219e-05,2]
[355677442,1741453832111,-500.0,8.219e-05,2]
[355677443,1741453832121,-500.0,8.219e-05,2]
[355677444,1741453832130,-500.0,8.219e-05,2]
[355677446,1741453832139,-500.0,8.219e-05,2]
[355677448,1741453832149,-500.0,8.219e-05,2]
[355677450,1741453832158,-500.0,8.219e-05,2]
[355677452,1741453832168,-319.0609515,8.219e-05,2]
[355677454,1741453832179,-180.9390485,8.219e-05,2]
[355677456,1741453832189,-500.0,8.219e-05,2]
[355677458,1741453832199,-500.0,8.219e-05,2]
[355677460,1741453832208,-500.0,8.219e-05,2]
[355677462,1741453832218,-500.0,8.219e-05,2]
[355677464,1741453832227,-500.0,8.219e-05,2]
[355677465,1741453832236,-532.29,8.219e-05,2]
[355677467,1741453832246,-500.0,8.219e-05,2]
[355677469,1741453832255,-596.43,8.219e-05,2]
[355677471,1741453832264,-470.23922347,8.219e-05,2]
[355677473,1741453832274,-500.0,8.219e-05,2]
[355677475,1741453832283,-638.46,8.219e-05,2]
[355677477,1741453832295,-808.44,8.219e-05,2]
[355677479,1741453832305,-500.0,8.219e-05,2]
[355677481,1741453832315,-500.0,8.219e-05,2]
[355677483,1741453832324,-500.0,8.219e-05,2]
[355677487,1741453832334,-500.0,8.219e-05,2]
[355677489,1741453832343,-500.0,8.219e-05,2]
[355677491,1741453832353,-500.0,8.219e-05,2]
[355677493,1741453832363,-629.05,8.219e-05,2]
[355677495,1741453832372,-500.0,8.219e-05,2]
[355677497,1741453832382,-500.0,8.219e-05,2]
[355677499,1741453832392,-500.0,8.219e-05,2]
[355677501,1741453832401,-449.65713247,8.219e-05,2]
[355677503,1741453832413,-328.17286753,8.219e-05,2]
[355677505,1741453832423,-500.0,8.219e-05,2]
[355677507,1741453832432,-500.0,8.219e-05,2]
[355677509,1741453832441,-1066.67,8.219e-05,2]
[355677511,1741453832450,-500.0,8.219e-05,2]
[355677513,1741453832463,-500.0,8.219e-05,2]
[355677515,1741453832476,-500.0,8.219e-05,2]
[355677517,1741453832486,-500.0,8.219e-05,2]
[355677519,1741453832495,-500.0,8.219e-05,2]
[355677521,1741453832506,-27.38913072,8.219e-05,2]
[355677526,1741453832547,-472.61086928,8.219e-05,2]
[355677528,1741453832557,-500.0,8.219e-05,2]
[355677530,1741453832567,-500.0,8.219e-05,2]
[355677532,1741453832577,-512.07,8.219e-05,2]
[355677534,1741453832587,-500.0,8.219e-05,2]
[355677536,1741453832597,-735.83,8.219e-05,2]
[355677538,1741453832606,-500.0,8.219e-05,2]
[355677539,1741453832615,-500.0,8.219e-05,2]
[355677541,1741453832625,-500.0,8.219e-05,2]
[355677542,1741453832634,-500.0,8.219e-05,2]
[355677544,1741453832643,-13669.37,8.219e-05,2]
[355677546,1741453832652,-6767.65,8.219e-05,2]
[355677548,1741453832661,-500.0,8.219e-05,2]
[355677549,1741453832671,-1834.72,8.219e-05,2]
[355677550,1741453832681,-1000.0,8.219e-05,2]
[355677551,1741453832691,-250.0,8.219e-05,2]
[355677552,1741453832701,-165.11,8.219e-05,2]
[355677553,1741453832711,-155.0,8.222e-05,2]
[355677554,1741453832721,-150.0,8.233e-05,2]
[355677555,1741453832731,-155.0,8.249e-05,2]
[355677556,1741453832740,-155.0,8.277e-05,2]
[355677557,1741453832750,-155.0,8.304e-05,2]
[355677558,1741453832759,-2000.0,8.33e-05,2]
[355677559,1741453832769,-685.36,8.49e-05,2]
[355677560,1741453832779,-654.12,8.49e-05,2]
[355677561,1741453832788,-500.0,8.49e-05,2]
[355677562,1741453832798,-1217.68,8.49e-05,2]
[355677563,1741453832807,-894.75,8.49e-05,2]
[355677564,1741453832816,-1614.77,8.49e-05,2]
[355677565,1741453832826,-1732.58,8.49e-05,2]
[355677566,1741453832835,-567.3,8.49e-05,2]
[355677567,1741453832845,-1226.62,8.49e-05,2]
[355677568,1741453832855,-709.87,8.49e-05,2]
[355677569,1741453832864,-500.0,8.49e-05,2]
[355677570,1741453832874,-1864.88,8.49e-05,2]
[355677571,1741453832883,-1545.59,8.49e-05,2]
[355677572,1741453832892,-1325.21,8.49e-05,2]
[355677573,1741453832902,-723.05,8.49e-05,2]
[355677574,1741453832911,-792.36,8.49e-05,2]
[355677575,1741453832920,-1676.41,8.49e-05,2]
[355677576,1741453832929,-8002.52,8.49e-05,2]
[355677577,1741453832939,-847.21,8.49e-05,2]
[355677578,1741453832948,-500.0,8.49e-05,2]
[355677579,1741453832957,-1089.26,8.49e-05,2]
[355677580,1741453832967,-709.15,8.49e-05,2]
[355677581,1741453832977,-500.0,8.49e-05,2]
[355677582,1741453832986,-808.81,8.49e-05,2]
[355677583,1741453832996,-500.0,8.49e-05,2]
[355677584,1741453833005,-5301.31,8.49e-05,2]
[355677585,1741453833015,-500.0,8.49e-05,2]
[355677586,1741453833025,-528.4,8.49e-05,2]
[355677587,1741453833035,-720.32,8.49e-05,2]
[355677588,1741453833044,-767.81,8.491e-05,2]
[355677589,1741453833054,-672.48,8.491e-05,2]
[355677590,1741453833064,-500.0,8.491e-05,2]
[355677591,1741453833074,-500.0,8.491e-05,2]
[355677592,1741453833084,-500.0,8.491e-05,2]
[355677593,1741453833095,-500.0,8.491e-05,2]
[355677594,1741453833105,-500.0,8.491e-05,2]
[355677595,1741453833115,-500.0,8.491e-05,2]
[355677596,1741453833125,-500.0,8.491e-05,2]
[355677597,1741453833134,-500.0,8.491e-05,2]
[355677598,1741453833144,-500.0,8.491e-05,2]
[355677599,1741453833154,-500.0,8.491e-05,2]
[355677600,1741453833166,-500.0,8.491e-05,2]
[355677601,1741453833176,-536.4415133,8.491e-05,2]
[355677602,1741453833186,-500.0,8.491e-05,2]
[355677603,1741453833195,-500.0,8.491e-05,2]
[355677604,1741453833205,-500.0,8.491e-05,2]
[355677605,1741453833215,-190.12408461,8.491e-05,2]
[355677606,1741453833224,-500.0,8.491e-05,2]
[355677607,1741453833233,-500.0,8.491e-05,2]
[355677608,1741453833243,-500.0,8.491e-05,2]
[355677609,1741453833252,-500.0,8.491e-05,2]
[355677610,1741453833262,-500.0,8.491e-05,2]
[355677611,1741453833272,-500.0,8.491e-05,2]
[355677612,1741453833281,-500.0,8.491e-05,2]
[355677613,1741453833290,-500.0,8.491e-05,2]
[355677614,1741453833300,-500.0,8.491e-05,2]
[355677615,1741453833310,-500.0,8.491e-05,2]
[355677616,1741453833320,-500.0,8.491e-05,2]
[355677617,1741453833329,-500.0,8.491e-05,2]
[355677618,1741453833339,-500.0,8.491e-05,2]
[355677619,1741453833349,-500.0,8.491e-05,2]
[355677620,1741453833359,-500.0,8.491e-05,2]
[355677621,1741453833368,-500.0,8.491e-05,2]
[355677622,1741453833378,-500.0,8.491e-05,2]
[355677623,1741453833389,-500.0,8.491e-05,2]
[355677624,1741453833399,-500.0,8.491e-05,2]
[355677625,1741453833408,-500.0,8.491e-05,2]
[355677626,1741453833418,-500.0,8.491e-05,2]
[355677627,1741453833428,-500.0,8.491e-05,2]
[355677628,1741453833438,-333.878102,8.491e-05,2]
[355677629,1741453833449,-518.65,8.491e-05,2]
[355677630,1741453833461,-500.0,8.491e-05,2]
[355677631,1741453833474,-500.0,8.491e-05,2]
[355677632,1741453833484,-500.0,8.491e-05,2]
[355677633,1741453833493,-500.0,8.491e-05,2]
[355677634,1741453833503,-500.0,8.491e-05,2]
[355677635,1741453833512,-500.0,8.491e-05,2]
[355677636,1741453833522,-500.0,8.491e-05,2]
[355677637,1741453833532,-672.41,8.491e-05,2]
[355677638,1741453833543,-500.0,8.491e-05,2]
[355677639,1741453833553,-500.0,8.491e-05,2]
[355677640,1741453833563,-500.0,8.491e-05,2]
[355677641,1741453833573,-500.0,8.491e-05,2]
[355677642,1741453833584,-500.0,8.491e-05,2]
[355677643,1741453833594,-500.0,8.491e-05,2]
[355677644,1741453833603,-545.23,8.491e-05,2]
[355677645,1741453833613,-500.0,8.491e-05,2]
[355677646,1741453833623,-223.137457,8.491e-05,2]
[355677647,1741453833633,-633.61,8.491e-05,2]
[355677648,1741453833642,-500.0,8.491e-05,2]
[355677649,1741453833652,-500.0,8.491e-05,2]
[355677650,1741453833662,-534.47,8.491e-05,2]
[355677651,1741453833672,-500.0,8.491e-05,2]
[355677652,1741453833682,-500.0,8.491e-05,2]
[355677653,1741453833692,-500.0,8.491e-05,2]
[355677654,1741453833702,-521.59,8.491e-05,2]
[355677655,1741453833713,-500.0,8.491e-05,2]
[355677656,1741453833725,-500.0,8.491e-05,2]
[355677657,1741453833737,-500.0,8.491e-05,2]
[355677658,1741453833748,-214.36614512,8.491e-05,2]
[355677659,1741453833758,-500.0,8.491e-05,2]
[355677660,1741453833769,-500.0,8.491e-05,2]
[355677661,1741453833779,-500.0,8.491e-05,2]
[355677662,1741453833789,-535.14,8.491e-05,2]
[355677663,1741453833799,-678.48,8.491e-05,2]
[355677664,1741453833810,-500.0,8.491e-05,2]
[355677665,1741453833820,-500.0,8.491e-05,2]
[355677666,1741453833830,-500.0,8.491e-05,2]
[355677667,1741453833840,-500.0,8.491e-05,2]
[355677668,1741453833850,-633.5,8.491e-05,2]
[355677669,1741453833860,-500.0,8.491e-05,2]
[355677670,1741453833870,-500.0,8.491e-05,2]
[355677671,1741453833879,-500.0,8.491e-05,2]
[355677672,1741453833889,-500.0,8.491e-05,2]
[355677673,1741453834116,-500.0,8.491e-05,2]
[355677674,1741453834127,-900.83,8.491e-05,2]
[355677675,1741453834136,-500.0,8.491e-05,2]
[355677676,1741453834146,-786.48,8.491e-05,2]
[355677677,1741453834156,-761.12,8.491e-05,2]
[355677678,1741453834165,-1023.98,8.491e-05,2]
[355677679,1741453834175,-2799.77,8.491e-05,2]
[355677680,1741453834185,-620.31,8.491e-05,2]
[355677681,1741453834195,-1260.86,8.491e-05,2]
[355677682,1741453834205,-649.06396081,8.491e-05,2]